bitfinex/quotes_BTCUSD_20250414
["timestamp","ask_amount","ask_price","bid_price","bid_amount"]
[1744617109258,9.6e-07,84471.0,84470.0,1.19309347]
[1744617110130,0.00100096,84471.0,84470.0,1.20009347]
[1744617111568,0.00100096,84471.0,84470.0,1.20509347]
[1744617112070,0.0008442,84497.0,84496.0,0.189358]
[1744617112268,0.00098293,84497.0,84496.0,0.189358]
[1744617113055,0.00098293,84497.0,84496.0,0.19641554]
[1744617113959,0.00098293,84497.0,84496.0,0.20011339]
[1744617114079,0.00398293,84497.0,84496.0,0.20011339]
[1744617114479,0.00398293,84497.0,84496.0,0.01109508]
[1744617114682,0.04978293,84497.0,84496.0,0.01109508]
[1744617114888,0.10083944,84497.0,84496.0,0.01109508]
[1744617115141,0.10083944,84497.0,84496.0,0.00369785]
[1744617116120,0.189378,84488.0,84486.0,0.00369785]
[1744617116326,0.059534,84496.0,84492.0,0.011835]
[1744617116521,0.0477,84496.0,84493.0,0.189364]
[1744617116701,0.05008293,84497.0,84494.0,0.201195]
[1744617117042,0.05008293,84497.0,84496.0,0.189358]
[1744617117244,0.05008293,84497.0,84495.0,0.00739478]
[1744617117408,0.23943993,84497.0,84496.0,0.00369785]
[1744617117806,0.23643993,84497.0,84496.0,0.00369785]
[1744617118428,0.04708293,84497.0,84496.0,0.00369785]
[1744617118632,0.011834,84496.0,84493.0,0.01109263]
[1744617118790,0.18936,84495.0,84493.0,0.01109263]
[1744617118989,0.0474,84494.0,84493.0,0.01109263]
[1744617119192,0.0474,84494.0,84493.0,0.00369785]
[1744617119606,0.011835,84492.0,84487.0,0.02292863]
[1744617119906,0.011835,84491.0,84488.0,0.00739478]
[1744617120491,0.011835,84491.0,84489.0,0.00739478]
[1744617120804,0.201204,84491.0,84489.0,0.00739478]
[1744617120955,0.189375,84489.0,84487.0,0.00939478]
[1744617121167,0.189375,84489.0,84487.0,0.00739478]
[1744617121370,0.189375,84489.0,84488.0,0.001]
[1744617121934,0.201214,84487.0,84486.0,0.00739478]
[1744617122512,0.011836,84486.0,84482.0,0.01923078]
[1744617123681,0.011836,84486.0,84482.0,0.011836]
[1744617123920,0.011836,84487.0,84483.0,0.20492082]
[1744617124129,0.011835,84490.0,84485.0,0.189382]
[1744617124342,0.236763,84494.0,84488.0,0.001]
[1744617124515,0.05891693,84497.0,84492.0,0.189365]
[1744617124715,0.011834,84496.0,84492.0,0.2012]
[1744617125463,0.05891693,84497.0,84493.0,0.011835]
[1744617125666,0.011834,84496.0,84493.0,0.011835]
[1744617126743,0.04708293,84497.0,84494.0,0.201197]
[1744617127045,0.04708293,84497.0,84493.0,0.201199]
[1744617127247,0.00098293,84497.0,84495.0,0.189359]
[1744617127633,0.011835,84494.0,84486.0,0.011836]
[1744617127861,0.201192,84496.0,84492.0,0.011835]
[1744617128039,0.00198293,84497.0,84496.0,0.189358]
[1744617128906,0.00198293,84497.0,84496.0,0.1930553]
[1744617129110,0.00198293,84497.0,84496.0,0.20044987]
[1744617129311,0.00098293,84497.0,84496.0,0.20044987]
[1744617129564,0.00198293,84497.0,84496.0,0.20044987]
[1744617130066,0.00098293,84497.0,84496.0,0.20044987]
[1744617130273,0.00198293,84497.0,84496.0,0.20044987]
[1744617132061,0.00198293,84497.0,84496.0,0.20044998]
[1744617137696,0.00198293,84497.0,84496.0,0.1930553]
[1744617138874,0.00198293,84497.0,84496.0,0.20044994]
[1744617142351,0.00198293,84497.0,84496.0,0.32365816]
[1744617142554,0.00198293,84497.0,84496.0,0.36799148]
[1744617142984,0.00198293,84497.0,84496.0,0.42933233]
[1744617143408,0.00098293,84497.0,84496.0,0.42933233]
[1744617143712,0.00098293,84497.0,84496.0,0.41679148]
[1744617144064,0.00098293,84497.0,84496.0,0.4265241]
[1744617144226,0.00098293,84497.0,84496.0,0.44106495]
[1744617144432,0.00098293,84497.0,84496.0,0.44006495]
[1744617144648,0.00098293,84497.0,84496.0,0.44406495]
[1744617144852,0.00028071,84497.0,84496.0,0.44406495]
[1744617145682,0.00028071,84497.0,84496.0,0.44206495]
[1744617145808,0.00128071,84497.0,84496.0,0.44806495]
[1744617148003,0.00128071,84497.0,84496.0,0.4335241]
[1744617148147,0.00128071,84497.0,84496.0,0.44806495]
[1744617148787,0.00128071,84497.0,84496.0,0.78806495]
[1744617150770,0.00128071,84497.0,84496.0,0.7735241]
[1744617152620,0.00128071,84497.0,84496.0,0.78806495]
[1744617163262,0.00128071,84497.0,84496.0,0.6800241]
[1744617164098,0.00128071,84497.0,84496.0,0.3400241]
[1744617167525,0.00128071,84497.0,84496.0,0.21044994]
[1744617168389,0.00128071,84497.0,84496.0,0.33129148]
[1744617170311,0.00128071,84497.0,84496.0,0.34037859]
[1744617181898,0.00128071,84497.0,84496.0,0.38957859]
[1744617183374,0.00128071,84497.0,84496.0,0.40411944]
[1744617183884,7.1e-07,84497.0,84496.0,0.74411944]
[1744617187949,7.1e-07,84497.0,84496.0,1.16281944]
[1744617191485,7.1e-07,84497.0,84496.0,1.17860944]
[1744617193006,7.1e-07,84497.0,84496.0,1.32632944]
[1744617198521,7.1e-07,84497.0,84496.0,1.32232944]
[1744617198722,0.0008442,84505.0,84498.0,0.54389385]
[1744617198923,0.0008442,84505.0,84498.0,0.67213003]
[1744617199462,0.0008442,84505.0,84498.0,0.67582733]
[1744617199710,0.0008442,84505.0,84498.0,1.09452733]
[1744617200993,0.0008442,84505.0,84498.0,1.09852733]
[1744617201139,0.0008442,84505.0,84498.0,1.10352733]
[1744617206074,0.0008442,84505.0,84498.0,1.08898648]
[1744617209715,0.0008442,84505.0,84498.0,1.10352733]
[1744617211962,0.0008442,84505.0,84498.0,1.09613269]
[1744617214224,0.0008442,84505.0,84498.0,1.10352529]
[1744617214724,0.0008442,84505.0,84498.0,1.19792529]
[1744617215286,8e-07,84505.0,84504.0,0.52934]
[1744617215491,8e-07,84505.0,84504.0,0.72101499]
[1744617215710,8e-07,84505.0,84504.0,0.72471229]
[1744617216453,8e-07,84505.0,84504.0,0.72371229]
[1744617216616,8e-07,84505.0,84504.0,0.72031969]
[1744617216816,8e-07,84505.0,84504.0,0.72262239]
[1744617217042,8e-07,84505.0,84504.0,0.71862239]
[1744617217568,8e-07,84505.0,84504.0,0.71962239]
[1744617217909,8e-07,84505.0,84504.0,0.72362239]
[1744617220256,8e-07,84505.0,84504.0,1.14232239]
[1744617221157,8e-07,84505.0,84504.0,1.09442239]
[1744617222854,8e-07,84505.0,84504.0,1.07988154]
[1744617223011,8e-07,84505.0,84504.0,0.73988154]
[1744617223205,8e-07,84505.0,84504.0,0.20034]
[1744617223807,8e-07,84505.0,84504.0,0.19534]
[1744617224116,8e-07,84505.0,84504.0,0.19234]
[1744617224319,8e-07,84505.0,84504.0,0.19534]
[1744617224665,8e-07,84505.0,84504.0,0.19234]
[1744617225481,8e-07,84505.0,84504.0,0.18934]
[1744617225720,8e-07,84505.0,84504.0,0.31454809]
[1744617225922,8e-07,84505.0,84504.0,0.31418154]
[1744617227058,0.0456008,84505.0,84504.0,0.19334]
[1744617228935,0.0456008,84505.0,84504.0,0.18934]
[1744617229126,0.0456008,84505.0,84504.0,0.19034]
[1744617229442,8e-07,84505.0,84504.0,0.31218154]
[1744617230482,8e-07,84505.0,84504.0,0.31587797]
[1744617232055,8e-07,84505.0,84504.0,0.32327034]
[1744617233139,8e-07,84505.0,84504.0,0.31587797]
[1744617234438,8e-07,84505.0,84504.0,0.3232705]
[1744617237224,8e-07,84505.0,84504.0,0.31587797]
[1744617249489,8e-07,84505.0,84504.0,0.32327051]
[1744617249613,8e-07,84505.0,84504.0,0.38561136]
[1744617250695,8e-07,84505.0,84504.0,0.43321136]
[1744617251313,8e-07,84505.0,84504.0,0.43221136]
[1744617251517,8e-07,84505.0,84504.0,0.43421136]
[1744617251856,8e-07,84505.0,84504.0,1.19191136]
[1744617251987,8e-07,84505.0,84504.0,1.19491136]
[1744617252191,8e-07,84505.0,84504.0,1.19191136]
[1744617252647,8e-07,84505.0,84504.0,1.19391136]
[1744617252810,8e-07,84505.0,84504.0,1.19691136]
[1744617253332,8e-07,84505.0,84504.0,1.19291136]
[1744617253693,8e-07,84505.0,84504.0,1.19691136]
[1744617254738,8e-07,84505.0,84504.0,1.19391136]
[1744617255055,8e-07,84505.0,84504.0,1.19691136]
[1744617256143,0.000845,84514.0,84513.0,0.529319]
[1744617256351,0.00089127,84514.0,84513.0,0.66470139]
[1744617256553,0.00089127,84514.0,84513.0,0.67209393]
[1744617257367,0.00089127,84514.0,84513.0,0.67579036]
[1744617258349,0.00089127,84514.0,84513.0,0.67779036]
[1744617258951,0.00089127,84514.0,84513.0,0.66524951]
[1744617259149,0.00089127,84514.0,84513.0,0.67679282]
[1744617259775,0.00089127,84514.0,84513.0,0.69133367]
[1744617270388,2.7e-07,84514.0,84513.0,0.73993367]
[1744617270524,2.7e-07,84516.0,84515.0,0.54385585]
[1744617270720,2.7e-07,84516.0,84515.0,0.66839382]
[1744617271154,2.7e-07,84516.0,84515.0,0.67578636]
[1744617272117,0.0008442,84523.0,84522.0,0.54383985]
[1744617272267,0.00089046,84523.0,84522.0,0.66468139]
[1744617272668,0.00089046,84523.0,84522.0,0.67207393]
[1744617273494,0.00089046,84523.0,84522.0,0.67577036]
[1744617273723,0.00089046,84523.0,84522.0,0.67677036]
[1744617273854,0.00089046,84523.0,84522.0,0.67777036]
[1744617275965,0.00089046,84523.0,84522.0,1.09647036]
[1744617278040,0.00089046,84523.0,84522.0,1.10548608]
[1744617281570,0.00089046,84523.0,84522.0,1.25012608]
[1744617286816,0.00089046,84523.0,84522.0,1.23558523]
[1744617293645,0.00089046,84523.0,84522.0,0.81688523]
[1744617294737,0.00089046,84523.0,84522.0,0.67224523]
[1744617297196,0.00089046,84523.0,84522.0,0.68678608]
[1744617302998,0.04251046,84539.0,84538.0,0.189263]
[1744617303197,0.04240988,84539.0,84538.0,0.189263]
[1744617303397,0.04240988,84539.0,84538.0,0.20035197]
[1744617304737,0.04640988,84539.0,84538.0,0.20035197]
[1744617304881,0.04840988,84539.0,84538.0,0.20035197]
[1744617308272,0.00604626,84539.0,84538.0,0.32119351]
[1744617309105,0.00404626,84539.0,84538.0,0.32119351]
[1744617309514,0.00504626,84539.0,84538.0,0.32119351]
[1744617309875,0.00104626,84539.0,84538.0,0.32119351]
[1744617310335,0.00304626,84539.0,84538.0,0.32119351]
[1744617310478,0.00104626,84539.0,84538.0,0.32119351]
[1744617311280,4.626e-05,84539.0,84538.0,0.32119351]
[1744617311912,4.626e-05,84539.0,84538.0,0.32219351]
[1744617323532,4.626e-05,84539.0,84538.0,0.01208897]
[1744617324715,0.23440726,84539.0,84538.0,0.01208897]
[1744617324923,0.23440726,84539.0,84538.0,0.00469643]
[1744617325570,0.23440726,84539.0,84538.0,0.00369643]
[1744617325779,0.201097,84537.0,84534.0,0.00369643]
[1744617326339,0.201096,84537.0,84534.0,0.00369643]
[1744617326566,0.201096,84537.0,84533.0,0.011829]
[1744617326852,0.18927,84535.0,84532.0,0.01847863]
[1744617327052,0.201099,84535.0,84532.0,0.01847863]
[1744617327890,0.201099,84535.0,84526.0,0.01183]
[1744617327891,0.011829,84531.0,84526.0,0.01183]
[1744617328093,0.201104,84533.0,84528.0,0.201115]
[1744617328295,0.011829,84533.0,84529.0,0.01183]
[1744617328663,0.011829,84533.0,84526.0,0.01183]
[1744617328664,0.011829,84531.0,84526.0,0.01183]
[1744617329409,0.201108,84531.0,84526.0,0.01183]
[1744617329781,0.047,84530.0,84526.0,0.01183]
[1744617329990,0.05883,84530.0,84526.0,0.01183]
[1744617330714,0.047,84530.0,84527.0,0.201118]
[1744617331252,0.047,84530.0,84527.0,0.01183]
[1744617332885,0.048,84530.0,84527.0,0.01183]
[1744617334503,0.048,84530.0,84528.0,0.189286]
[1744617334504,0.001,84530.0,84528.0,0.189286]
[1744617335304,0.001,84530.0,84529.0,0.12084154]
[1744617335752,0.01187426,84539.0,84535.0,0.011829]
[1744617336812,4.626e-05,84539.0,84536.0,0.201097]
[1744617337017,4.626e-05,84539.0,84537.0,0.3124713]
[1744617337219,0.00304626,84539.0,84537.0,0.31010554]
[1744617337848,0.00304626,84539.0,84538.0,0.01108552]
[1744617338101,0.00504626,84539.0,84538.0,0.13192706]
[1744617338444,0.00204626,84539.0,84538.0,0.13192706]
[1744617338667,0.00204626,84539.0,84538.0,0.12453671]
[1744617339249,4.626e-05,84539.0,84538.0,0.12084154]
[1744617339940,0.00104626,84539.0,84538.0,0.12084154]
[1744617353027,0.00104626,84539.0,84536.0,0.201097]
[1744617353496,0.011829,84533.0,84529.0,0.01183]
[1744617353639,0.19030826,84539.0,84531.0,0.011829]
[1744617353844,0.19030826,84539.0,84533.0,0.189273]
[1744617354082,0.189265,84538.0,84532.0,0.189277]
[1744617354785,0.18930826,84539.0,84532.0,0.189277]
[1744617355124,0.011829,84537.0,84533.0,0.011829]
[1744617355825,0.011829,84532.0,84528.0,0.01183]
[1744617355998,0.011829,84532.0,84529.0,0.01183]
[1744617356947,0.011829,84532.0,84528.0,0.01183]
[1744617357654,0.012829,84532.0,84528.0,0.01183]
[1744617357859,0.012829,84532.0,84529.0,0.01183]
[1744617358555,0.001,84532.0,84529.0,0.201113]
[1744617359707,0.011829,84533.0,84529.0,0.201113]
[1744617360083,0.001,84532.0,84529.0,0.201113]
[1744617360260,0.001,84532.0,84529.0,0.01183]
[1744617360558,0.011829,84533.0,84529.0,0.01183]
[1744617360767,0.001,84532.0,84529.0,0.01183]
[1744617361329,0.011829,84533.0,84529.0,0.01183]
[1744617361618,0.011829,84533.0,84530.0,0.01183]
[1744617361813,0.012829,84533.0,84530.0,0.01183]
[1744617363227,0.011829,84533.0,84530.0,0.01183]
[1744617363378,0.011829,84535.0,84531.0,0.011829]
[1744617363717,0.001,84532.0,84531.0,0.011829]
[1744617363919,0.011829,84534.0,84531.0,0.011829]
[1744617364096,0.001,84533.0,84531.0,0.011829]
[1744617364299,0.011829,84534.0,84531.0,0.011829]
[1744617365591,0.011829,84534.0,84530.0,0.01183]
[1744617366277,0.002,84533.0,84530.0,0.01183]
[1744617366495,0.011829,84534.0,84530.0,0.01183]
[1744617366915,0.012829,84534.0,84530.0,0.01183]
[1744617367122,0.001,84534.0,84531.0,0.011829]
[1744617367479,0.001,84533.0,84531.0,0.011829]
[1744617367682,0.011829,84535.0,84531.0,0.011829]
[1744617367883,0.001,84534.0,84531.0,0.011829]
[1744617368287,0.011829,84535.0,84531.0,0.011829]
[1744617369595,0.002,84533.0,84531.0,0.011829]
[1744617370446,0.011829,84535.0,84531.0,0.011829]
[1744617370846,0.002,84533.0,84531.0,0.011829]
[1744617371493,0.011829,84535.0,84531.0,0.011829]
[1744617372949,0.013829,84535.0,84531.0,0.011829]
[1744617373556,0.002,84535.0,84534.0,0.189272]
[1744617373944,0.002,84535.0,84534.0,0.31247934]
[1744617374163,0.002,84535.0,84534.0,0.31011354]
[1744617374743,0.001,84535.0,84534.0,0.31011354]
[1744617375893,0.41284414,84547.0,84538.0,0.189263]
[1744617376092,0.41284414,84547.0,84538.0,0.31010454]
[1744617377208,0.00104626,84539.0,84538.0,0.31010454]
[1744617381295,0.00104626,84539.0,84538.0,0.35920454]
[1744617392790,0.00104626,84539.0,84538.0,0.36289955]
[1744617394220,0.00104626,84539.0,84538.0,0.35920454]
[1744617394443,0.00104626,84539.0,84538.0,0.36659457]
[1744617395703,0.00104626,84539.0,84538.0,0.42793542]
[1744617395905,0.00104626,84539.0,84538.0,0.76793542]
[1744617396111,4.626e-05,84539.0,84538.0,0.76793542]
[1744617396409,4.626e-05,84539.0,84538.0,0.76893542]
[1744617396832,4.626e-05,84539.0,84538.0,0.77262996]
[1744617397049,4.626e-05,84539.0,84538.0,0.77362996]
[1744617397392,4.626e-05,84539.0,84538.0,0.77262996]
[1744617397509,4.626e-05,84539.0,84538.0,0.77662996]
[1744617398109,4.626e-05,84539.0,84538.0,0.77562996]
[1744617398425,4.626e-05,84539.0,84538.0,0.77762996]
[1744617399030,4.626e-05,84539.0,84538.0,1.19432996]
[1744617399230,4.626e-05,84539.0,84538.0,1.19732996]
[1744617413521,4.626e-05,84539.0,84538.0,1.10142996]
[1744617413962,4.626e-05,84539.0,84538.0,1.24582996]
[1744617415000,4.626e-05,84539.0,84538.0,1.23128911]
[1744617416067,4.626e-05,84539.0,84538.0,1.08688911]
[1744617416590,4.626e-05,84539.0,84538.0,1.07949908]
[1744617419838,4.626e-05,84539.0,84538.0,1.07580454]
[1744617422626,4.626e-05,84539.0,84538.0,0.65710454]
[1744617425102,4.626e-05,84539.0,84538.0,0.70650454]
[1744617428577,4.626e-05,84539.0,84538.0,0.72843476]
[1744617428754,4.626e-05,84539.0,84538.0,0.73212944]
[1744617431659,4.626e-05,84539.0,84538.0,0.72474007]
[1744617432827,4.626e-05,84539.0,84538.0,0.73212927]
[1744617434444,4.626e-05,84539.0,84538.0,1.29514927]
[1744617435225,4.626e-05,84539.0,84538.0,1.28776007]
[1744617438098,0.0015507,84559.0,84545.0,0.201074]
[1744617438290,0.00201338,84559.0,84558.0,0.189219]
[1744617438681,0.00871295,84559.0,84558.0,0.19291368]
[1744617438991,0.00201338,84559.0,84558.0,0.19291368]
[1744617439190,0.00201338,84559.0,84558.0,0.189219]
[1744617440283,0.00501338,84559.0,84558.0,0.189219]
[1744617451732,0.00501338,84559.0,84558.0,0.31006054]
[1744617452581,0.00401338,84559.0,84558.0,0.31006054]
[1744617452893,0.00201338,84559.0,84558.0,0.31006054]
[1744617453313,0.00401338,84559.0,84558.0,0.31006054]
[1744617454038,0.00201338,84559.0,84558.0,0.31006054]
[1744617454214,0.00201338,84559.0,84558.0,0.40236054]
[1744617455810,0.00201338,84559.0,84558.0,0.40336054]
[1744617456638,0.00201338,84559.0,84558.0,0.40436054]
[1744617460902,0.00201338,84559.0,84558.0,0.31206054]
[1744617468130,0.0125912,84561.0,84560.0,0.189214]
[1744617468277,0.01263744,84561.0,84560.0,0.31005554]
[1744617469504,0.01263744,84561.0,84560.0,0.31105554]
[1744617494154,0.01263744,84561.0,84560.0,0.71209639]
[1744617494363,0.01263744,84561.0,84560.0,0.75869639]
[1744617494942,0.01263744,84561.0,84560.0,0.75769639]
[1744617495165,0.01263744,84561.0,84560.0,0.76508334]
[1744617495549,0.01263744,84561.0,84560.0,0.75769639]
[1744617496114,0.01263744,84561.0,84560.0,0.75969639]
[1744617496617,0.01263744,84561.0,84560.0,0.76169639]
[1744617496736,0.01263744,84561.0,84560.0,0.75969639]
[1744617496944,0.01263744,84561.0,84560.0,0.76169639]
[1744617498526,0.01263744,84561.0,84560.0,0.76538975]
[1744617498723,0.01263744,84561.0,84560.0,1.19147647]
[1744617502066,4.4e-07,84561.0,84560.0,1.19147647]
[1744617502450,4.4e-07,84561.0,84560.0,1.33547647]
[1744617504448,4.4e-07,84561.0,84560.0,1.33647647]
[1744617504662,4.4e-07,84561.0,84560.0,1.33547647]
[1744617505596,4.4e-07,84561.0,84560.0,1.33147647]
[1744617505755,4.4e-07,84561.0,84560.0,1.33447647]
[1744617505961,4.4e-07,84561.0,84560.0,1.34047647]
[1744617506168,4.4e-07,84561.0,84560.0,1.33447647]
[1744617506383,4.4e-07,84561.0,84560.0,1.33747647]
[1744617506580,4.4e-07,84561.0,84560.0,1.34147647]
[1744617507270,0.04,84569.0,84560.0,1.34147647]
[1744617507271,0.03929608,84569.0,84568.0,0.529196]
[1744617507449,0.03929608,84569.0,84568.0,1.08697175]
[1744617507653,0.03929608,84569.0,84568.0,1.09435847]
[1744617509382,0.03929608,84569.0,84568.0,1.10035847]
[1744617513049,0.03929608,84569.0,84568.0,1.14815847]
[1744617518880,0.03929608,84569.0,84568.0,1.29199847]
[1744617519610,0.03929608,84569.0,84568.0,1.22965762]
[1744617521243,0.03929608,84569.0,84568.0,1.24419847]
[1744617523081,0.03929608,84569.0,84568.0,1.22965762]
[1744617525137,0.03929608,84569.0,84568.0,0.66711762]
[1744617525980,0.03929608,84569.0,84568.0,0.32711762]
[1744617527288,0.03929608,84569.0,84568.0,0.32411762]
[1744617528486,0.08499608,84569.0,84568.0,0.32411762]
[1744617528655,0.08499608,84569.0,84568.0,0.01408008]
[1744617529341,0.08599608,84569.0,84568.0,0.01108008]
[1744617529693,0.13159608,84569.0,84568.0,0.01108008]
[1744617530411,0.13159608,84569.0,84568.0,0.00369336]
[1744617533527,0.13159608,84569.0,84567.0,0.189198]
[1744617534549,0.13159608,84569.0,84566.0,0.011825]
[1744617534745,0.011825,84565.0,84559.0,0.01377662]
[1744617534946,0.249428,84565.0,84564.0,0.00369405]
[1744617535501,0.294928,84565.0,84564.0,0.00369405]
[1744617535702,0.634928,84565.0,84564.0,0.00369405]
[1744617535924,0.621514,84560.0,84559.0,0.01377662]
[1744617536146,0.529221,84557.0,84556.0,0.00738852]
[1744617536363,0.529221,84557.0,84534.0,0.0008444]
[1744617536364,0.215666,84537.0,84534.0,0.0008444]
[1744617536563,0.215666,84537.0,84536.0,0.01625268]
[1744617536946,0.258766,84537.0,84536.0,0.01625268]
[1744617537664,0.39124494,84537.0,84536.0,0.01625268]
[1744617538435,0.39224494,84537.0,84536.0,0.01625268]
[1744617538756,0.39124494,84537.0,84536.0,0.01625268]
[1744617539140,0.39524494,84537.0,84536.0,0.01625268]
[1744617539664,0.39124494,84537.0,84536.0,0.01625268]
[1744617540039,0.39824494,84537.0,84536.0,0.01625268]
[1744617542033,0.39424494,84537.0,84536.0,0.01625268]
[1744617542250,0.39924494,84537.0,84536.0,0.01625268]
[1744617542586,0.81208908,84537.0,84536.0,0.01625268]
[1744617543034,0.81208908,84537.0,84524.0,0.0008442]
[1744617543035,0.01183,84528.0,84524.0,0.0008442]
[1744617543292,0.52929,84526.0,84525.0,0.00089044]
[1744617543512,0.66467239,84526.0,84525.0,0.00089044]
[1744617543724,1.19824501,84526.0,84525.0,0.00089044]
[1744617544145,0.189337,84505.0,84502.0,0.0008444]
[1744617544365,0.410857,84505.0,84504.0,0.00089066]
[1744617545694,0.53169854,84505.0,84504.0,0.00089066]
[1744617545900,0.99842702,84505.0,84504.0,0.00189066]
[1744617546199,0.88169854,84505.0,84504.0,0.00189066]
[1744617546553,0.91821721,84505.0,84504.0,0.00189066]
[1744617546982,1.32706135,84505.0,84504.0,0.00189066]
[1744617547381,1.33575912,84505.0,84504.0,0.00189066]
[1744617547763,1.29924045,84505.0,84504.0,0.00189066]
[1744617547960,1.29924045,84505.0,84504.0,0.00089066]
[1744617548147,1.29324045,84505.0,84504.0,0.00089066]
[1744617548348,1.30424045,84505.0,84504.0,0.00189066]
[1744617548544,1.30424045,84505.0,84504.0,0.00089066]
[1744617548951,1.30824045,84505.0,84504.0,0.00189066]
[1744617549209,1.31324045,84505.0,84504.0,0.00189066]
[1744617551579,1.19239891,84505.0,84504.0,0.00189066]
[1744617551951,1.04847891,84505.0,84504.0,0.00189066]
[1744617552209,1.30981043,84505.0,84504.0,0.00189066]
[1744617554446,1.19235891,84505.0,84504.0,0.00189066]
[1744617554676,1.31320045,84505.0,84504.0,0.00189066]
[1744617554934,1.23560045,84505.0,84504.0,0.00189066]
[1744617555179,1.11475891,84505.0,84504.0,0.00189066]
[1744617555412,0.43284414,84505.0,84504.0,0.00189066]
[1744617555652,0.02,84505.0,84504.0,0.19123066]
[1744617555891,0.02,84505.0,84504.0,0.3120722]
[1744617556347,0.14388,84520.0,84519.0,0.189306]
[1744617556813,0.14388,84520.0,84517.0,0.189309]
[1744617557575,0.14388,84520.0,84517.0,0.20114]
[1744617557953,0.14388,84520.0,84519.0,0.189306]
[1744617558154,0.14488,84520.0,84519.0,0.189306]
[1744617558989,0.14388,84520.0,84519.0,0.189306]
[1744617559228,0.14588,84520.0,84519.0,0.189306]
[1744617559437,0.14688,84520.0,84519.0,0.189306]
[1744617560881,0.14688,84520.0,84516.0,0.011832]
[1744617560882,0.158711,84520.0,84516.0,0.189312]
[1744617561348,0.158711,84520.0,84516.0,0.201144]
[1744617561571,0.14688,84520.0,84516.0,0.201144]
[1744617561783,0.157711,84520.0,84516.0,0.201144]
[1744617561996,0.157711,84520.0,84516.0,0.189312]
[1744617562219,0.155711,84520.0,84516.0,0.189312]
[1744617562650,0.14388,84520.0,84516.0,0.201144]
[1744617563099,0.14388,84520.0,84516.0,0.189312]
[1744617563337,0.155711,84520.0,84516.0,0.189312]
[1744617563738,0.14388,84520.0,84518.0,0.189307]
[1744617564218,0.14388,84520.0,84517.0,0.01552754]
[1744617564928,0.155709,84531.0,84524.0,0.01183]
[1744617565159,0.01183,84527.0,84523.0,0.189295]
[1744617565416,0.01183,84527.0,84525.0,0.00739273]
[1744617565842,0.01183,84527.0,84526.0,0.00369654]
[1744617566542,0.201118,84527.0,84526.0,0.00369654]
[1744617567180,0.202118,84527.0,84526.0,0.00369654]
[1744617567829,0.204118,84527.0,84526.0,0.00369654]
[1744617568049,0.01183,84525.0,84521.0,0.201132]
[1744617568285,0.01183,84525.0,84521.0,0.189301]
[1744617568732,0.01183,84525.0,84521.0,0.201132]
[1744617568967,0.01183,84525.0,84521.0,0.189301]
[1744617569364,0.001,84525.0,84521.0,0.201132]
[1744617569663,0.002,84525.0,84522.0,0.19299332]
[1744617569961,0.01383,84525.0,84522.0,0.00369632]
[1744617570919,0.01383,84525.0,84523.0,0.00369632]
[1744617571133,0.002,84525.0,84523.0,0.00369632]
[1744617571398,0.001,84525.0,84523.0,0.00369632]
[1744617571569,0.01383,84525.0,84521.0,0.1893]
[1744617571768,0.01283,84525.0,84521.0,0.1893]
[1744617572165,0.01183,84524.0,84520.0,0.201133]
[1744617572370,0.01583,84525.0,84520.0,0.189302]
[1744617572554,0.01183,84525.0,84520.0,0.201133]
[1744617572753,0.01283,84525.0,84521.0,0.011831]
[1744617573177,0.001,84525.0,84522.0,0.201128]
[1744617573375,0.01183,84530.0,84524.0,0.189295]
[1744617573591,0.01183,84529.0,84524.0,0.189295]
[1744617573816,0.001,84525.0,84524.0,0.201125]
[1744617574003,0.001,84525.0,84524.0,0.189295]
[1744617574627,0.001,84525.0,84524.0,0.19299119]
[1744617574988,0.002,84525.0,84524.0,0.19299119]
[1744617575826,0.01183,84530.0,84525.0,0.20112]
[1744617576822,0.01183,84530.0,84526.0,0.01183]
[1744617576986,0.01283,84530.0,84526.0,0.201118]
[1744617577166,0.01283,84530.0,84526.0,0.189288]
[1744617577796,0.01483,84530.0,84526.0,0.201118]
[1744617578147,0.001,84530.0,84528.0,0.189285]
[1744617578353,0.01183,84530.0,84526.0,0.201118]
[1744617578554,0.01383,84530.0,84526.0,0.201118]
[1744617579264,0.01483,84530.0,84526.0,0.201118]
[1744617579626,0.01483,84530.0,84526.0,0.189288]
[1744617579823,0.01483,84530.0,84525.0,0.01183]
[1744617579824,0.01183,84529.0,84524.0,0.189294]
[1744617580038,0.01183,84527.0,84523.0,0.011831]
[1744617580238,0.01183,84527.0,84513.0,0.201151]
[1744617580239,0.189306,84520.0,84513.0,0.201151]
[1744617580434,0.01183,84525.0,84519.0,0.20483129]
[1744617580617,0.01183,84527.0,84522.0,0.189299]
[1744617580832,0.01183,84526.0,84523.0,0.189295]
[1744617581042,0.01283,84530.0,84525.0,0.189293]
[1744617581267,0.001,84527.0,84526.0,0.01183]
[1744617581463,0.01183,84530.0,84526.0,0.01183]
[1744617581721,0.01283,84529.0,84525.0,0.201123]
[1744617582021,0.001,84527.0,84526.0,0.189289]
[1744617582147,0.01183,84530.0,84524.0,0.01183]
[1744617582493,0.001,84527.0,84525.0,0.19298809]
[1744617582848,0.01183,84530.0,84525.0,0.20481809]
[1744617583068,0.01183,84530.0,84527.0,0.189288]
[1744617583270,0.01283,84530.0,84527.0,0.189288]
[1744617583467,0.001,84530.0,84529.0,0.189284]
[1744617583709,0.001,84530.0,84527.0,0.189288]
[1744617583908,0.001,84530.0,84529.0,0.189284]
[1744617584321,0.001,84530.0,84529.0,0.19298]
[1744617584526,0.011829,84532.0,84529.0,0.003696]
[1744617584873,0.001,84530.0,84529.0,0.003696]
[1744617585076,0.003,84530.0,84529.0,0.003696]
[1744617585397,0.011829,84532.0,84529.0,0.003696]
[1744617585596,0.201107,84532.0,84529.0,0.003696]
[1744617585829,0.204107,84532.0,84529.0,0.003696]
[1744617585981,0.189281,84531.0,84529.0,0.003696]
[1744617586186,0.189281,84531.0,84530.0,0.003696]
[1744617587379,0.001,84532.0,84530.0,0.052996]
[1744617587623,0.001,84532.0,84530.0,0.05304226]
[1744617588303,0.1438,84535.0,84531.0,0.189279]
[1744617588572,0.011828,84545.0,84540.0,0.011828]
[1744617588886,1.25084,84552.0,84548.0,0.011827]
[1744617589128,1.25084,84552.0,84551.0,0.189234]
[1744617589385,0.14376,84552.0,84551.0,0.189234]
[1744617589603,0.14376,84552.0,84549.0,0.189239]
[1744617590025,0.155587,84552.0,84547.0,0.201069]
[1744617590280,0.011827,84550.0,84547.0,0.189242]
[1744617591740,0.011827,84551.0,84547.0,0.189242]